Cogmind - Beta 14 @@@ ROGUE MODE // 2025.03.01 @ 18:01:38 Player: Darsidian Result: Destroyed by G-34 Mercenary with Small Laser Performance ------------- Evolutions (0) 0 Regions Visited (1) 200 Robots Destroyed (19) 95 Value Destroyed (256) 256 Prototype IDs (0) 0 Alien Tech Used (0) 0 Bonus (0) 0 TOTAL SCORE: 551 Bonus ------- None Cogmind --------- Core Integrity 0/250 Matter 300/300 Energy 125/125 System Corruption 0% Temperature Cool (6) Movement Rolling (90) Location -10/Materials Parts ------- > --- POWER (1) -------- Light Ion Engine > --- PROPULSION (2) --- Wheel Compact Wheel > --- UTILITY (2) ------ Heat Sink Large Storage Unit > --- WEAPON (2) ------- (None) > --- INVENTORY (15) --- Medium Storage Unit Improved Terrain Scanner Seismic Detector ECM Suite Light Armor Plating Beam Cannon Beam Cannon Beam Cannon Peak State ------------ > --- POWER ------------ Ion Engine > --- PROPULSION ------- Compact Wheel Compact Wheel > --- UTILITY ---------- Small Storage Unit Improved Terrain Scanner > --- WEAPON ----------- Medium Laser Medium Laser > --- INVENTORY -------- EM Pulse Gun [Rating: 9] Favorites ----------- Power Ion Engine Engine Ion Engine Propulsion Compact Wheel Wheel Compact Wheel Utility Seismic Detector Device Seismic Detector Storage Medium Storage Unit Protection Light Armor Plating Weapon Medium Laser Energy Gun Medium Laser Energy Cannon Beam Cannon Build | -11 -10 ------- Run | Yrd Mat Slots Evolved . | . . Power . | . . Propulsion . | . . Utility . | . . Weapon . | . . Parts Attached 19 | 7 12 Power 2 | 1 1 Engine 2 | 1 1 Core . | . . Reactor . | . . Propulsion 4 | 2 2 Treads . | . . Leg . | . . Wheel 4 | 2 2 Hover . | . . Flight . | . . Utility 8 | 2 6 Device 4 | 1 3 Storage 3 | 1 2 Processor . | . . Hackware . | . . Protection 1 | . 1 Artifact . | . . Weapon 5 | 2 3 Energy Gun 3 | 2 1 Energy Cannon 2 | . 2 Ballistic Gun . | . . Ballistic Cannon . | . . Launcher . | . . Special Weapon . | . . Impact Weapon . | . . Slashing Weapon . | . . Piercing Weapon . | . . Special Melee Weapon . | . . Unidentified Prototypes . | . . Parts Lost 5 | . 5 Power 1 | . 1 Propulsion 2 | . 2 Utility . | . . Weapon 2 | . 2 Highest Loss Streak 3 | . 3 To Critical Strikes . | . . Average Slot Usage (%) 96 | . 96 Engine 13 | . 13 Wheel 26 | . 26 Device 13 | . 13 Storage 14 | . 14 Energy Gun 13 | . 13 Energy Cannon 13 | . 13 Peak Build Rating 9 | 9 9 Average Rating 7 | 7 6 On Entrance 4 | . 9 Naked Turns . | . . Heaviest Build 32 | 15 32 Greatest Support 32 | 32 32 Greatest Overweight (x) 1 | 1 1 Average Overweight (x) . | . . Largest Inventory Capacity 15 | 8 15 Average Capacity 9 | 7 10 Most Carried 9 | 4 9 Average Carried 5 | 2 5 Final Capacity 15 | 8 15 Final Carried 8 | 4 8 Class Distribution -------------------- 100% | Mutant Dominant Class ---------------- Mutant | -10/Materials Resources | -11 -10 ----------- Run | Yrd Mat Matter Collected 390 | 270 120 Remotely . | . . Salvage Created 478 | 174 304 Parts 35 | 15 20 Haulers Intercepted . | . . Recyclers Shooed 1 | 1 . Parts Field Recycled . | . . Retrieved Matter . | . . Parts Self-Destructed . | . . Prevented . | . . Kills | -11 -10 ------- Run | Yrd Mat Combat Hostiles Destroyed 11 | . 11 Guns 5 | . 5 Cannons 6 | . 6 Classes Destroyed 5 | 2 3 Tunneler 6 | 5 1 Recycler 1 | 1 . Watcher 1 | . 1 Swarmer 8 | . 8 Grunt 3 | . 3 Best Kill Streak 4 | 4 3 Combat Bots Only 3 | . 3 Max Kills in Single Turn 1 | 1 1 Gunslinging . | . . Exploded . | . . Melee . | . . Uniques/NPCs Destroyed . | . . Combat | -11 -10 -------- Run | Yrd Mat Hostile Shots Fired 88 | . 88 Missed 19 | . 19 Damage Taken 618 | . 618 Core 259 | . 259 Absorbed by Shields . | . . Core Remaining (%) 100 | 100 . Volleys Fired 55 | 15 40 Largest 2 | 2 2 Hottest 120 | 100 120 Shots Fired 99 | 30 69 Gun 66 | 30 36 Cannon 33 | . 33 Launcher . | . . Special . | . . Kinetic . | . . Thermal 83 | 30 53 Explosive . | . . Electromagnetic 16 | . 16 Robot Hit Streak 8 | 6 8 Robot Miss Streak 5 | 3 5 Penetration Max . | . . Secondary Targets . | . . Shots Hit Robots 54 | 16 38 Core Hits 19 | 7 12 Critical Kills . | . . Critical Parts Destroyed . | . . Critical Strikes 3 | 2 1 Burn 3 | 2 1 Melee Attacks . | . . Impact . | . . Slashing . | . . Piercing . | . . Sneak Attacks . | . . Combat Hostiles . | . . Follow-up Attacks . | . . Damage Inflicted 804 | 214 590 Guns 470 | 214 256 Cannons 334 | . 334 Explosions . | . . Melee . | . . Ramming . | . . Kinetic . | . . Thermal 662 | 214 448 Explosive . | . . Electromagnetic 142 | . 142 Impact . | . . Slashing . | . . Piercing . | . . Highest Corruption . | . . Average Corruption . | . . Corruption Purged . | . . Corruption Blocked . | . . Overload Shots . | . . Overflow Damage 11 | . 11 Projectiles 11 | . 11 Explosions . | . . Melee . | . . Knockbacks . | . . Impact . | . . Kinetic . | . . Secondary . | . . Self-Inflicted Damage . | . . Shots . | . . Rammed . | . . Targets Rammed . | . . Kicked . | . . Crushed . | . . Highest Temperature 328 | 156 328 Average Temperature 98 | 55 115 Received Heat Transfer 132 | . 132 Effects 1 | . 1 Interference 1 | . 1 Siege Activations . | . . Robots Corrupted . | . . Combat Hostiles . | . . Parts Fried . | . . Impact Corruptions . | . . Robots Melted . | . . Combat Hostiles . | . . Parts Melted 4 | 2 2 Heat Transferred 1850 | 777 1073 Parts Sabotaged . | . . Parts Stolen . | . . Parts Stripped . | . . Power Chain Reactions . | . . Alert | -11 -10 ------- Run | Yrd Mat Peak Influence 192 | 30 192 Initial 19 | . 19 Average 104 | 14 124 Maximum Alert Level . | . . Low Security (%) 100 | 100 100 Level 1 . | . . Level 2 . | . . Level 3 . | . . Level 4 . | . . Level 5 . | . . High Security . | . . Max Security . | . . Squads Dispatched 3 | . 3 Investigation 3 | . 3 Extermination . | . . Reinforcement . | . . Assault . | . . Garrison . | . . Intercept . | . . Searches Triggered . | . . Construction Impeded . | . . Haulers Reinforced . | . . Active Scanning Responses . | . . Cargo Convoy Interrupts . | . . Stealth | -11 -10 --------- Run | Yrd Mat Distress Signals 2 | . 2 Communications Jammed . | . . Distress Signals . | . . Times Spotted 23 | . 23 Peak Tracking Total 4 | . 4 Tactical Retreats 4 | . 4 Traps | -11 -10 ------- Run | Yrd Mat Traps Triggered 1 | . 1 Indirectly . | . . Trap Hack Attempts . | . . Triggered . | . . Disarmed . | . . Reprogrammed . | . . Reused . | . . Traps Extracted . | . . Installed . | . . Triggered . | . . Machines | -11 -10 ---------- Run | Yrd Mat Machines Disabled 1 | . 1 Max in Single Turn 1 | . 1 Machines Repaired . | . . Machines Dismantled . | . . Machines Sabotaged . | . . Overloaded Fab Kills . | . . Hacking | -11 -10 --------- Run | Yrd Mat Machines Accessed 6 | . 6 Terminals 6 | . 6 Fabricators . | . . Repair Stations . | . . Recycling Units . | . . Scanalyzers . | . . Garrison Access . | . . Total Hacks 23 | . 23 Successful 10 | . 10 Failed 12 | . 12 Catastrophic 1 | . 1 Database Lockouts 1 | . 1 Manual 21 | . 21 Terminals 23 | . 23 Fabricators . | . . Repair Stations . | . . Recycling Units . | . . Scanalyzers . | . . Garrison Access . | . . Terminal Hacks 3 | . 3 Robot Analysis 3 | . 3 Fabricator Hacks . | . . Repair Station Hacks . | . . Recycling Unit Hacks . | . . Scanalyzer . | . . Garrison Access Hacks . | . . Unauthorized Hacks 7 | . 7 Terminals 7 | . 7 Track 2 | . 2 Botnet 4 | . 4 Operators 1 | . 1 Fabricators . | . . Repair Stations . | . . Recycling Units . | . . Scanalyzers . | . . Garrison Access . | . . Data Cores Recovered . | . . Used . | . . Hacking Detections 5 | . 5 Full Trace Events 2 | . 2 Feedback Events . | . . Feedback Blocked . | . . Robot Schematics Acquired . | . . Robots Built . | . . Authchips . | . . Time . | . . Total Robot Build Rating . | . . Part Schematics Acquired . | . . Parts Built . | . . Authchips . | . . Time . | . . Total Part Build Rating . | . . Parts Repaired . | . . Time . | . . Parts Recycled . | . . Recycled Matter . | . . Retrieved Matter . | . . Retrieved Components . | . . Parts Scanalyzed . | . . Part Schematics Acquired . | . . Parts Damaged . | . . Bothacking | -11 -10 ------------ Run | Yrd Mat Used RIF Installer . | . . Robots Hacked . | . . Non-combat . | . . Combat . | . . Robot Hacks Applied . | . . Relay Couplers Released . | . . Fabnet Peak Effective % . | . . Robots Rewired . | . . Allies Hacked . | . . Hacks Repelled . | . . Allies | -11 -10 -------- Run | Yrd Mat Total Allies . | . . Largest Group . | . . Highest-Rated Group . | . . Highest-Rated Ally . | . . Total Orders . | . . Ally Attacks . | . . Total Damage . | . . Kills . | . . Allies Corrupted . | . . Allies Melted . | . . Intel | -11 -10 ------- Run | Yrd Mat Robot Analysis Total 3 | . 3 Derelict Logs Recovered . | . . Drone Launches . | . . Drone Recoveries . | . . Exploration | -11 -10 ------------- Run | Yrd Mat Turns Passed 741 | 135 606 Spaces Moved 487 | 80 407 Core 9 | 9 . Treads . | . . Legs . | . . Wheels 478 | 71 407 Hover . | . . Flight . | . . Fastest Speed 50 | 50 90 Average Speed 99 | 95 100 Slowest Speed 115 | 100 115 Overloaded Moves . | . . Propulsion Burnouts . | . . Robots Hopped . | . . Cave-ins Triggered . | . . Exploration Rate (%) 33 | 4 63 Regions Visited 1 Branch Regions . Pre-discovered Areas . | . . Known Exits Taken . | . . Unknown Exits Taken 1 | 1 . Scrap Searched . | . . Spaces Dug . | . . Terrain Destroyed . | . . Melee . | . . Projectile . | . . AOE . | . . Terrain Rammed . | . . Walls Destroyed . | . . Machines Disabled . | . . Actions | -11 -10 --------- Run | Yrd Mat Total 637 | 105 532 Wait 63 | . 63 Move 486 | 79 407 Hop . | . . Pick Up 9 | 4 5 Fast Attach 10 | 7 3 Attach 2 | . 2 Detach 2 | . 2 Swap 7 | . 7 Drop 3 | . 3 Fire 55 | 15 40 Melee . | . . Ram . | . . Kick . | . . Crush . | . . Escape Stasis . | . . Rewire . | . . Trap . | . . Miscellaneous . | . . Route ------- -11/Scrapyard -10/Materials (discovered 2 exits: [*Mat x2]) History --------- Turn | Location | Event 11 | -11/Scrapyard | Discovered new exit (range 15) 136 | -11/Scrapyard | Entered Materials 316 | -10/Materials | Build established: Mutant 378 | -10/Materials | Central database locked down 508 | -10/Materials | Core integrity fell below 50% 520 | -10/Materials | Discovered new exit (range 7) 637 | -10/Materials | Discovered new exit (range 16) 698 | -10/Materials | Core integrity fell below 20% 728 | -10/Materials | Lost 3 parts (1p1n1w) 742 | -10/Materials | Destroyed by G-34 Mercenary with Small Laser Last Messages --------------- 00693_ Com. Wheel destroyed. 00695_ Ion Engine destroyed. 00696_ G-34 Mercenary destroyed. 00697_ EM Pulse Gun destroyed. 00702_ G-34 Mercenary destroyed. 00707_ U-05 Engineer lays Concrete. 00717_ G-34 Mercenary destroyed. 00720_ Acquired 10 matter. 00722_ U-05 Engineer lays Concrete. 00723_ Acquired Heat Sink. 00723_ U-05 Engineer lays Concrete. 00727_ Acquired Lgt. Ion Engine. 00729_ Acquired 17 matter. 00739_ Acquired 13 matter. 00740_ U-05 Engineer lays Concrete. 00740_ Triggered Alarm Trap. 00740_ An alarm sounds. 00740_ ALERT: Alarm triggered, dispatching investigation squad. 00741_ Beam Cannon destroyed. 00742_ U-05 Engineer lays Concrete. Map ----- +----------------------------------------------------+ | ????????????# #???# ?? | | ????????????# #???# """ ? | | ?#######+####+#####/####### """ # | | # """ # | | % * # | | [#= """ # | | ###+##########+###/#####+# """ # | | ?????????????# %# """ # | | ?????????????# """ """ # ? | | ?????????????# """ """ #########? | | ?????????????# """ "" #????????? | | ?????????????# #?####???? | | ??????????##+#########+###### !##??? | | ?????? !#??? | | ?????? !#??? | | ?????? #??? | | ???????################## ! !#??? | | ????????????????????????# % !##??? | | ????????????????????????# ######## | | ??????????????????#?????# # # | | ??????????????????#u##??# # [[ # | | ???????????????????#t ?# # [[ # | | ???????????????????# # # [[ # | | ???????????????????# # # # | | ????????????????????# = # # | | ????????????????????## #@%[+ # | | ?????????????????????####% # """ # | | ????????????????????????# = # """ # | | ????????????????????????# # """ # | | ????????????????????????# # """ # | | ????????????????????????#gg # """ # | | ????????????????????????# < # ? | | ????????????????????????# g #######? | | ????????????????????????#####??????? | | ???????????????????????????????????? | | ???????????????????????????????????? | | ???????????????????????????????????? | | ???????????????????????????????????? | | ???????????????????????????????????? | | ???????????????????????????????????? | | ???????????????????????????????????? | | | | | | | | | | | | | | | | | | | +----------------------------------------------------+ Best States ------------- Heat Dissipation 35 Energy Generation 10 Energy Capacity 250 Matter Stores 300 Matter Capacity 300 Sight Range 16 Terrain Scan Range 16 Terrain Scan Density 10 ECM Strength 1 Armor Coverage 150 Evasion (%) 40 Item Schematics ----------------- None Robot Schematics ------------------ None Fabricated ------------ Nothing Alien Tech Used ----------------- None Achievements -------------- None Challenges ------------ None Game ------ Seed AlertVoltaicField Manual? 0 Play Time 00:12:56 Cumulative 214.6 hours Start 2025.03.01 @ 17:46:15 End 2025.03.01 @ 18:01:38 Sessions 1 Manual Loads 0 Difficulty Rogue Special Mode None Game No. 59 Rogue 59 Adventurer 0 Explorer 0 Win Type - Total 1 Types 1/0/0/0/0/0/0/0/0 Lore% 52 Gallery% 59 Achievement% 48 Wizard Run 0 Options --------- Layout 0 ASCII 1 Keyboard 0 Movement Mouse Keybinds 0 Fullscreen 1 Font 36/Smallcaps Map View 76x50 Zoom Use 0% Tactical HUD 1 Map Filters NONE Filters NONE Steam 1 RUN: f0cff29a-7589-4d64-8534-d393ea6e37e3